[Event "EYCC Open-U12 2019"]
[Site "Bratislava"]
[Date "2019.08.06"]
[Round "5.28"]
[White "Krawczyk, Flawian"]
[Black "Soderstrom, Adrian"]
[Result "1/2-1/2"]
[ECO "B31"]
[WhiteElo "1848"]
[BlackElo "1970"]
[Annotator "NA"]
[PlyCount "79"]
[EventDate "2019.08.02"]
[EventType "swiss"]
[EventCountry "SVK"]
[SourceTitle "playchess.com"]
[Source "ChessBase"]
[SourceQuality "1"]
[TimeControl "40/5400+30:1800+30"]

1. e4 {[%emt 0:00:00]} c5 {[%emt 0:00:00]} 2. Nf3 {[%emt 0:00:00]} Nc6 {[%emt 0:00:11]} 3. Bb5 {[%emt 0:00:11]} g6 {[%emt 0:00:27]} 4. Bxc6 {[%emt 0:00:08]} dxc6 {[%emt 0:00:08]} 5. O-O {[%emt 0:00:11]} Bg7 {[%emt 0:00:44]} 6. d3 {[%emt 0:00:26]} e5 {[%emt 0:01:18]} 7. Be3 {[%emt 0:01:06]} b6 {[%emt 0:01:13]} 8. Nbd2 {[%emt 0:01:30]} Qc7 {[%emt 0:12:54]} 9. h3 {[%emt 0:01:14]} Ne7 {[%emt 0:01:57]} 10. Nc4 {[%emt 0:00:57]} Be6 {[%emt 0:01:04]} 11. Ng5 {[%emt 0:03:33]} Bxc4 {[%emt 0:09:55]} 12. dxc4 {[%emt 0:00:03]} h6 {[%emt 0:00:27]} 13. Nf3 {[%emt 0:01:22]} f5 {[%emt 0:02:03]} 14. exf5 {[%emt 0:05:24]} gxf5 {[%emt 0:05:49]} 15. Nh4 {[%emt 0:01:10]} O-O {[%emt 0:04:37]} 16. f4 {[%emt 0:04:01]} e4 {[%emt 0:03:24]} 17. c3 {[%emt 0:01:47]} Rad8 {[%emt 0:11:51]} 18. Qe2 {[%emt 0:06:46]} Qc8 {[%emt 0:04:21]} 19. Rad1 {[%emt 0:04:44]} Qe6 {[%emt 0:04:17]} 20. Rxd8 {[%emt 0:04:48]} Rxd8 {[%emt 0:00:44]} 21. Rd1 {[%emt 0:00:23]} Rxd1+ {[%emt 0:10:43]} 22. Qxd1 {[%emt 0:00:04]} Bf6 {[%emt 0:00:29]} 23. Qh5 {[%emt 0:01:02]} Bxh4 {[%emt 0:10:35]} 24. Qxh4 {[%emt 0:00:58]} Kf7 {[%emt 0:00:26]} 25. Qh5+ {[%emt 0:01:18]} Qg6 {[%emt 0:01:18]} 26. Qxg6+ {[%emt 0:01:08]} Kxg6 {[%emt 0:00:48]} 27. b4 {[%emt 0:00:22]} cxb4 {[%emt 0:00:48]} 28. cxb4 {[%emt 0:00:02]} Nc8 {[%emt 0:01:35]} 29. a4 {[%emt 0:02:48]} a6 {[%emt 0:01:35]} 30. b5 {[%emt 0:07:00]} axb5 {[%emt 0:01:06]} 31. cxb5 {[%emt 0:00:17]} cxb5 {[%emt 0:00:16]} 32. axb5 {[%emt 0:00:01]} Nd6 {[%emt 0:01:44]} 33. Bxb6 {[%emt 0:00:10]} Nxb5 {[%emt 0:02:50]} 34. Bc5 {[%emt 0:02:19]} Nc3 {[%emt 0:00:35]} 35. Kf2 {[%emt 0:02:03]} Nd5 {[%emt 0:00:17]} 36. Bd6 {[%emt 0:00:59]} Nb6 {[%emt 0:00:56]} 37. g4 {[%emt 0:01:01]} Nd5 {[%emt 0:00:47]} 38. Kg3 {[%emt 0:01:01]} Nf6 {[%emt 0:01:20]} 39. Be7 {[%emt 0:02:23]} Nd5 {[%emt 0:00:35]} 40. Bd6 {[%emt 0:00:00]} 1/2-1/2

[Event "EYCC Open-U12 2019"]
[Site "Bratislava"]
[Date "2019.08.06"]
[Round "5.29"]
[White "Shatil, Shir"]
[Black "Cohen, Elad"]
[Result "1/2-1/2"]
[ECO "E54"]
[WhiteElo "1653"]
[BlackElo "2002"]
[Annotator "NA"]
[PlyCount "76"]
[EventDate "2019.08.02"]
[EventType "swiss"]
[EventCountry "SVK"]
[SourceTitle "playchess.com"]
[Source "ChessBase"]
[SourceQuality "1"]
[TimeControl "40/5400+30:1800+30"]

1. d4 {[%emt 0:00:00]} Nf6 {[%emt 0:00:00]} 2. c4 {[%emt 0:00:00]} e6 {[%emt 0:00:00]} 3. Nc3 {[%emt 0:00:00]} Bb4 {[%emt 0:00:25]} 4. e3 {[%emt 0:00:00]} O-O {[%emt 0:00:53]} 5. Bd3 {[%emt 0:00:00]} d5 {[%emt 0:00:21]} 6. Nf3 {[%emt 0:00:00]} dxc4 {[%emt 0:00:46]} 7. Bxc4 {[%emt 0:00:03]} c5 {[%emt 0:00:15]} 8. O-O {[%emt 0:00:24]} cxd4 {[%emt 0:00:46]} 9. exd4 {[%emt 0:00:21]} b6 {[%emt 0:00:44]} 10. Bg5 {[%emt 0:01:10]} Bb7 {[%emt 0:01:01]} 11. Qe2 {[%emt 0:00:31]} Nbd7 {[%emt 0:01:58]} 12. Ne5 {[%emt 0:04:34]} Qc7 {[%emt 0:14:30]} 13. Nb5 {[%emt 0:02:12]} Qd8 {[%emt 0:05:51]} 14. Bxf6 {[%emt 0:25:15]} Nxf6 {[%emt 0:03:08]} 15. a3 {[%emt 0:00:30]} Be7 {[%emt 0:04:28]} 16. Rad1 {[%emt 0:04:11]} Bd5 {[%emt 0:08:29]} 17. Bxd5 {[%emt 0:01:13]} Nxd5 {[%emt 0:01:53]} 18. Nc6 {[%emt 0:01:20]} Qd7 {[%emt 0:00:21]} 19. Nxe7+ Qxe7 {[%emt 0:00:40]} 20. Qe5 {[%emt 0:11:52]} a6 {[%emt 0:06:10]} 21. Nd6 {[%emt 0:02:42]} Rfd8 {[%emt 0:01:17]} 22. Ne4 {[%emt 0:01:41]} Rac8 {[%emt 0:02:22]} 23. Rc1 {[%emt 0:02:28]} h6 {[%emt 0:01:05]} 24. Rfd1 {[%emt 0:02:57]} Qd7 {[%emt 0:02:36]} 25. Qg3 {[%emt 0:03:19]} Qa4 {[%emt 0:07:13]} 26. Qd3 {[%emt 0:06:04]} Rxc1 {[%emt 0:03:40]} 27. Rxc1 {[%emt 0:00:02]} Nf4 {[%emt 0:00:28]} 28. Qf1 {[%emt 0:08:45]} Qxd4 {[%emt 0:01:39]} 29. Nc3 {[%emt 0:01:35]} b5 {[%emt 0:08:53]} 30. Rd1 {[%emt 0:03:15]} Qb6 {[%emt 0:00:46]} 31. Rxd8+ {[%emt 0:00:36]} Qxd8 {[%emt 0:00:15]} 32. Qd1 {[%emt 0:00:04]} Qg5 {[%emt 0:06:38]} 33. g3 {[%emt 0:03:17]} Nd5 {[%emt 0:01:29]} 34. Ne2 {[%emt 0:01:49]} Qg4 {[%emt 0:02:14]} 35. Qc2 {[%emt 0:01:06]} b4 {[%emt 0:02:40]} 36. Qc8+ {[%emt 0:01:33]} Kh7 {[%emt 0:00:05]} 37. Qxa6 {[%emt 0:01:32]} Qe4 {[%emt 0:05:33]} 38. Nc1 {[%emt 0:02:07]} g6 1/2-1/2

[Event "EYCC Open-U12 2019"]
[Site "Bratislava"]
[Date "2019.08.06"]
[Round "5.30"]
[White "Costa, Leonardo"]
[Black "Kisic, Dusan"]
[Result "1-0"]
[ECO "B12"]
[WhiteElo "2002"]
[BlackElo "1642"]
[Annotator "NA"]
[PlyCount "103"]
[EventDate "2019.08.02"]
[EventType "swiss"]
[EventCountry "SVK"]
[SourceTitle "playchess.com"]
[Source "ChessBase"]
[SourceQuality "1"]
[TimeControl "40/5400+30:1800+30"]

1. e4 {[%emt 0:00:00]} c6 {[%emt 0:00:00]} 2. d4 {[%emt 0:00:00]} d5 {[%emt 0:00:00]} 3. e5 {[%emt 0:00:00]} Bf5 {[%emt 0:00:00]} 4. h4 {[%emt 0:00:00]} h6 {[%emt 0:03:15]} 5. g4 {[%emt 0:01:46]} Bd7 {[%emt 0:00:14]} 6. h5 {[%emt 0:05:00]} e6 {[%emt 0:00:47]} 7. f4 {[%emt 0:12:42]} c5 {[%emt 0:00:24]} 8. c3 {[%emt 0:01:50]} Nc6 {[%emt 0:01:19]} 9. Nf3 {[%emt 0:01:56]} Qb6 {[%emt 0:01:05]} 10. Be2 {[%emt 0:11:20]} cxd4 {[%emt 0:00:28]} 11. cxd4 {[%emt 0:01:21]} Bb4+ {[%emt 0:00:09]} 12. Kf1 {[%emt 0:01:18]} O-O-O {[%emt 0:05:07]} 13. a3 {[%emt 0:03:18]} Be7 {[%emt 0:03:34]} 14. Nc3 {[%emt 0:01:03]} a6 {[%emt 0:00:16]} 15. Na4 {[%emt 0:02:12]} Qa7 {[%emt 0:01:49]} 16. Be3 {[%emt 0:02:51]} Rf8 {[%emt 0:03:08]} 17. b4 {[%emt 0:04:05]} f6 {[%emt 0:02:14]} 18. Kf2 {[%emt 0:07:42]} fxe5 {[%emt 0:01:10]} 19. fxe5 {[%emt 0:00:44]} Bg5 {[%emt 0:03:08]} 20. Nc5 {[%emt 0:00:40]} Bxe3+ {[%emt 0:00:08]} 21. Kxe3 {[%emt 0:00:05]} Qb6 {[%emt 0:01:45]} 22. Qd3 {[%emt 0:07:18]} Nge7 {[%emt 0:05:28]} 23. Rab1 {[%emt 0:06:51]} Na7 {[%emt 0:10:58]} 24. Rhc1 {[%emt 0:00:18]} Kd8 {[%emt 0:02:37]} 25. a4 {[%emt 0:03:25]} Nac8 {[%emt 0:16:48]} 26. a5 {[%emt 0:01:10]} Qc6 {[%emt 0:03:58]} 27. Qd2 {[%emt 0:03:00]} b5 {[%emt 0:11:52]} 28. axb6 {[%emt 0:00:09]} Qxb6 {[%emt 0:00:06]} 29. Bxa6 {[%emt 0:00:49]} Rf7 {[%emt 0:01:31]} 30. Be2 {[%emt 0:03:23]} Rhf8 {[%emt 0:00:20]} 31. Ne1 {[%emt 0:02:43]} Nc6 {[%emt 0:01:31]} 32. Ned3 {[%emt 0:00:55]} N8a7 {[%emt 0:00:55]} 33. Rf1 {[%emt 0:01:19]} Nb5 {[%emt 0:01:34]} 34. Rxf7 {[%emt 0:02:04]} Rxf7 {[%emt 0:00:05]} 35. Nf4 {[%emt 0:01:00]} Nbxd4 {[%emt 0:01:18]} 36. Nfd3 {[%emt 0:01:21]} Nb5 {[%emt 0:00:16]} 37. Qb2 {[%emt 0:01:08]} d4+ {[%emt 0:01:35]} 38. Kd2 {[%emt 0:00:05]} Nc3 {[%emt 0:00:06]} 39. Ra1 {[%emt 0:00:54]} Nxe2 {[%emt 0:02:13]} 40. Kxe2 {[%emt 0:00:00]} Qb5 {[%emt 0:00:00]} 41. Rf1 {[%emt 0:02:29]} Rxf1 {[%emt 0:01:27]} 42. Kxf1 {[%emt 0:00:04]} Qc4 {[%emt 0:09:39]} 43. Kg1 {[%emt 0:13:19]} Qd5 {[%emt 0:00:50]} 44. Qf2 {[%emt 0:03:47]} Kc7 {[%emt 0:12:57]} 45. Qf8 {[%emt 0:01:02]} Nxe5 {[%emt 0:07:35]} 46. Na6+ {[%emt 0:00:59]} Kc6 {[%emt 0:01:09]} 47. Qa8+ {[%emt 0:06:34]} Kd6 {[%emt 0:00:08]} 48. Qb8+ {[%emt 0:00:09]} Ke7 {[%emt 0:00:23]} 49. Nxe5 {[%emt 0:00:30]} d3 {[%emt 0:00:45]} 50. Ng6+ {[%emt 0:00:21]} Kf6 {[%emt 0:00:11]} 51. Qf8+ {[%emt 0:00:04]} Kg5 {[%emt 0:00:05]} 52. Qf4# {[%emt 0:00:07]} 1-0

[Event "EYCC Open-U12 2019"]
[Site "Bratislava"]
[Date "2019.08.06"]
[Round "5.31"]
[White "Eliseev, Sergey"]
[Black "Dovbnia, Nikita"]
[Result "1/2-1/2"]
[ECO "C42"]
[WhiteElo "2053"]
[BlackElo "1777"]
[Annotator "NA"]
[PlyCount "93"]
[EventDate "2019.08.02"]
[EventType "swiss"]
[EventCountry "SVK"]
[SourceTitle "playchess.com"]
[Source "ChessBase"]
[SourceQuality "1"]
[TimeControl "40/5400+30:1800+30"]

1. e4 {[%emt 0:00:00]} e5 {[%emt 0:00:00]} 2. Nf3 {[%emt 0:00:00]} Nf6 {[%emt 0:00:00]} 3. Nxe5 {[%emt 0:00:15]} d6 {[%emt 0:00:00]} 4. Nf3 {[%emt 0:00:06]} Nxe4 {[%emt 0:00:10]} 5. Nc3 {[%emt 0:00:06]} Nxc3 {[%emt 0:00:10]} 6. dxc3 {[%emt 0:00:07]} Be7 {[%emt 0:00:07]} 7. Be3 {[%emt 0:01:19]} O-O {[%emt 0:00:23]} 8. Qd2 {[%emt 0:06:10]} Nd7 {[%emt 0:00:35]} 9. O-O-O {[%emt 0:02:22]} c6 {[%emt 0:00:56]} 10. Bg5 {[%emt 0:11:35]} f6 {[%emt 0:06:02]} 11. Bf4 {[%emt 0:09:13]} Ne5 {[%emt 0:02:15]} 12. c4 {[%emt 0:08:38]} Be6 {[%emt 0:18:33]} 13. Nd4 {[%emt 0:10:38]} Bf7 {[%emt 0:08:19]} 14. Nf5 {[%emt 0:13:20]} d5 {[%emt 0:08:28]} 15. cxd5 {[%emt 0:03:37]} Bxd5 {[%emt 0:06:24]} 16. Qe3 {[%emt 0:04:05]} Qc7 {[%emt 0:15:02]} 17. c4 {[%emt 0:14:36]} Be6 {[%emt 0:08:12]} 18. Nxe7+ {[%emt 0:02:39]} Qxe7 {[%emt 0:00:06]} 19. f3 {[%emt 0:03:46]} Rfe8 {[%emt 0:02:56]} 20. Bxe5 {[%emt 0:01:00]} Bf7 {[%emt 0:04:56]} 21. Re1 {[%emt 0:01:54]} Qxe5 {[%emt 0:01:47]} 22. Qxe5 {[%emt 0:00:06]} fxe5 {[%emt 0:00:05]} 23. Bd3 {[%emt 0:01:03]} Rad8 {[%emt 0:00:15]} 24. Kc2 {[%emt 0:01:25]} Rd4 {[%emt 0:03:19]} 25. b3 {[%emt 0:02:35]} Red8 {[%emt 0:01:21]} 26. Re3 {[%emt 0:00:31]} g5 {[%emt 0:02:04]} 27. Rd1 {[%emt 0:00:58]} Bg6 {[%emt 0:00:09]} 28. Rd2 {[%emt 0:00:55]} Kg7 {[%emt 0:00:30]} 29. Kc3 {[%emt 0:00:29]} c5 {[%emt 0:01:21]} 30. g3 {[%emt 0:00:31]} Kf6 {[%emt 0:01:40]} 31. g4 {[%emt 0:00:38]} b6 {[%emt 0:01:44]} 32. h3 {[%emt 0:00:24]} a6 {[%emt 0:02:57]} 33. a4 {[%emt 0:00:18]} R8d6 {[%emt 0:04:09]} 34. Rd1 {[%emt 0:00:45]} Rd7 {[%emt 0:00:35]} 35. Rd2 {[%emt 0:00:18]} Rd8 {[%emt 0:00:06]} 36. Rd1 {[%emt 0:00:18]} R4d6 {[%emt 0:01:25]} 37. Rd2 {[%emt 0:00:18]} Rd4 {[%emt 0:00:43]} 38. Rd1 {[%emt 0:00:19]} R4d7 {[%emt 0:00:12]} 39. Rd2 {[%emt 0:00:14]} Rd6 {[%emt 0:00:09]} 40. Rd1 {[%emt 0:00:00]} R8d7 {[%emt 0:00:00]} 41. Rd2 {[%emt 0:01:43]} Rd4 {[%emt 0:07:04]} 42. Rd1 {[%emt 0:02:03]} R7d6 {[%emt 0:03:05]} 43. Rd2 Ke6 {[%emt 0:02:32]} 44. Kc2 {[%emt 0:09:24]} Kf6 {[%emt 0:07:48]} 45. Kc3 {[%emt 0:01:17]} Kg7 {[%emt 0:00:56]} 46. Kc2 {[%emt 0:03:16]} Kf6 {[%emt 0:00:21]} 47. Kc3 1/2-1/2

[Event "EYCC Open-U12 2019"]
[Site "Bratislava"]
[Date "2019.08.06"]
[Round "5.32"]
[White "Janous, Marek"]
[Black "Mekhane, Adam"]
[Result "1-0"]
[ECO "B62"]
[WhiteElo "1717"]
[BlackElo "2040"]
[Annotator "NA"]
[PlyCount "63"]
[EventDate "2019.08.02"]
[EventType "swiss"]
[EventCountry "SVK"]
[SourceTitle "playchess.com"]
[Source "ChessBase"]
[SourceQuality "1"]
[TimeControl "40/5400+30:1800+30"]

1. e4 {[%emt 0:00:00]} c5 {[%emt 0:00:00]} 2. Nf3 {[%emt 0:00:00]} Nc6 {[%emt 0:00:00]} 3. d4 {[%emt 0:00:00]} cxd4 {[%emt 0:00:00]} 4. Nxd4 {[%emt 0:00:00]} Nf6 {[%emt 0:00:00]} 5. Nc3 {[%emt 0:00:00]} d6 {[%emt 0:00:03]} 6. Bg5 {[%emt 0:00:53]} e6 {[%emt 0:00:09]} 7. f4 {[%emt 0:00:08]} Be7 {[%emt 0:06:21]} 8. Nxc6 {[%emt 0:00:55]} bxc6 {[%emt 0:00:20]} 9. Qf3 {[%emt 0:00:23]} Bd7 {[%emt 0:06:52]} 10. O-O-O {[%emt 0:02:21]} Qb6 {[%emt 0:12:05]} 11. e5 {[%emt 0:12:16]} dxe5 {[%emt 0:12:09]} 12. fxe5 {[%emt 0:02:03]} Qa5 {[%emt 0:00:33]} 13. Bxf6 {[%emt 0:02:48]} gxf6 {[%emt 0:00:51]} 14. exf6 {[%emt 0:00:19]} Qg5+ {[%emt 0:02:02]} 15. Kb1 {[%emt 0:02:02]} Qxf6 {[%emt 0:00:45]} 16. Qxf6 {[%emt 0:07:01]} Bxf6 {[%emt 0:01:29]} 17. Ne4 {[%emt 0:00:28]} Be7 {[%emt 0:07:09]} 18. Bc4 {[%emt 0:05:40]} O-O-O {[%emt 0:11:30]} 19. Rhf1 {[%emt 0:01:07]} f5 {[%emt 0:02:46]} 20. Ng3 {[%emt 0:02:33]} h5 {[%emt 0:13:22]} 21. Rde1 {[%emt 0:01:20]} Rh6 {[%emt 0:02:34]} 22. Nxf5 {[%emt 0:04:14]} exf5 {[%emt 0:01:11]} 23. Rxe7 {[%emt 0:00:06]} h4 {[%emt 0:02:13]} 24. Bd3 {[%emt 0:00:29]} h3 {[%emt 0:00:44]} 25. g3 {[%emt 0:00:19]} Rf8 {[%emt 0:00:26]} 26. b3 {[%emt 0:02:01]} Rhf6 {[%emt 0:01:22]} 27. Rf4 {[%emt 0:01:56]} Rh6 {[%emt 0:04:42]} 28. Rd4 {[%emt 0:02:03]} Rd8 {[%emt 0:02:27]} 29. Rexd7 {[%emt 0:01:31]} Rxd7 {[%emt 0:00:01]} 30. Bxf5 {[%emt 0:00:02]} Rhh7 {[%emt 0:00:01]} 31. Rxd7 {[%emt 0:00:16]} Rxd7 {[%emt 0:00:01]} 32. Bxh3 {[%emt 0:00:09]} 1-0

[Event "EYCC Open-U12 2019"]
[Site "Bratislava"]
[Date "2019.08.06"]
[Round "5.33"]
[White "Gschiel, Alexander"]
[Black "Kvaloy, Aksel Bu"]
[Result "0-1"]
[ECO "E10"]
[WhiteElo "1768"]
[BlackElo "2205"]
[Annotator "NA"]
[PlyCount "82"]
[EventDate "2019.08.02"]
[EventType "swiss"]
[EventCountry "SVK"]
[SourceTitle "playchess.com"]
[Source "ChessBase"]
[SourceQuality "1"]
[TimeControl "40/5400+30:1800+30"]

1. d4 {[%emt 0:00:00]} Nf6 {[%emt 0:00:00]} 2. c4 {[%emt 0:00:00]} e6 {[%emt 0:00:00]} 3. Nf3 {[%emt 0:00:45]} d5 {[%emt 0:00:29]} 4. g3 {[%emt 0:01:11]} Bb4+ {[%emt 0:02:21]} 5. Bd2 {[%emt 0:01:42]} Bd6 {[%emt 0:00:19]} 6. Bg2 {[%emt 0:00:45]} O-O {[%emt 0:00:52]} 7. Nc3 {[%emt 0:01:44]} dxc4 {[%emt 0:03:52]} 8. e4 {[%emt 0:04:12]} Bb4 {[%emt 0:04:45]} 9. Qe2 {[%emt 0:04:00]} b6 {[%emt 0:18:08]} 10. e5 {[%emt 0:10:13]} Bxc3 {[%emt 0:03:35]} 11. bxc3 {[%emt 0:01:16]} Nd5 {[%emt 0:01:19]} 12. Ng5 {[%emt 0:07:25]} h6 {[%emt 0:03:07]} 13. Ne4 {[%emt 0:01:23]} c5 {[%emt 0:09:38]} 14. Nd6 {[%emt 0:12:52]} cxd4 {[%emt 0:03:04]} 15. Qg4 {[%emt 0:03:09]} f5 {[%emt 0:16:43]} 16. Qg6 {[%emt 0:09:52]} Ne7 {[%emt 0:01:55]} 17. Qh5 {[%emt 0:01:57]} Nbc6 {[%emt 0:03:26]} 18. cxd4 {[%emt 0:01:33]} Nxd4 {[%emt 0:05:16]} 19. Bxh6 {[%emt 0:07:04]} Nec6 {[%emt 0:06:56]} 20. O-O-O {[%emt 0:04:31]} Ba6 {[%emt 0:06:45]} 21. Be3 {[%emt 0:04:10]} Nxe5 {[%emt 0:03:34]} 22. Rxd4 {[%emt 0:00:20]} Nd3+ {[%emt 0:00:24]} 23. Kb1 {[%emt 0:00:42]} Qd7 {[%emt 0:01:26]} 24. Nxc4 {[%emt 0:06:35]} Qb5+ {[%emt 0:00:55]} 25. Ka1 {[%emt 0:00:17]} Rad8 {[%emt 0:00:52]} 26. Rb1 {[%emt 0:02:27]} Qa4 {[%emt 0:00:35]} 27. Nb2 {[%emt 0:06:40]} Qc2 {[%emt 0:01:19]} 28. Nxd3 {[%emt 0:00:33]} Rxd4 {[%emt 0:00:24]} 29. Bxd4 {[%emt 0:00:59]} Bxd3 {[%emt 0:00:11]} 30. Re1 {[%emt 0:00:45]} Bc4 {[%emt 0:01:11]} 31. Bb2 {[%emt 0:01:29]} Qa4 {[%emt 0:00:33]} 32. a3 {[%emt 0:01:03]} Qb3 {[%emt 0:00:17]} 33. Kb1 {[%emt 0:00:09]} Bd3+ {[%emt 0:00:24]} 34. Ka1 {[%emt 0:00:07]} Bc4 {[%emt 0:00:01]} 35. Kb1 {[%emt 0:00:12]} Qa2+ {[%emt 0:01:38]} 36. Kc1 {[%emt 0:00:42]} Bd3 {[%emt 0:00:36]} 37. Qf3 {[%emt 0:01:24]} Rc8+ {[%emt 0:00:35]} 38. Kd2 {[%emt 0:01:18]} Qxb2+ {[%emt 0:00:08]} 39. Ke3 {[%emt 0:00:26]} Qe5+ {[%emt 0:00:32]} 40. Kd2 {[%emt 0:00:00]} Qc3+ {[%emt 0:00:00]} 41. Ke3 {[%emt 0:00:55]} Be4+ {[%emt 0:00:37] Kxe4} 0-1

[Event "EYCC Open-U12 2019"]
[Site "Bratislava"]
[Date "2019.08.06"]
[Round "5.34"]
[White "Nastore, Pavel-Alexandru"]
[Black "Rakovsky, Jakub"]
[Result "1-0"]
[ECO "B96"]
[WhiteElo "2084"]
[BlackElo "1663"]
[Annotator "NA"]
[PlyCount "41"]
[EventDate "2019.08.02"]
[EventType "swiss"]
[EventCountry "SVK"]
[SourceTitle "playchess.com"]
[Source "ChessBase"]
[SourceQuality "1"]
[TimeControl "40/5400+30:1800+30"]

1. e4 {[%emt 0:00:00]} c5 {[%emt 0:00:00]} 2. Nf3 {[%emt 0:00:00]} d6 {[%emt 0:00:40]} 3. d4 {[%emt 0:00:00]} cxd4 {[%emt 0:00:12]} 4. Nxd4 {[%emt 0:00:00]} Nf6 {[%emt 0:00:37]} 5. Nc3 {[%emt 0:00:00]} a6 {[%emt 0:00:38]} 6. Bg5 {[%emt 0:00:00]} e6 {[%emt 0:01:01]} 7. f4 {[%emt 0:00:00]} h6 {[%emt 0:00:22]} 8. Bh4 {[%emt 0:00:18]} Qb6 {[%emt 0:00:50]} 9. Qd2 {[%emt 0:02:18]} Qxb2 {[%emt 0:05:06]} 10. Rb1 {[%emt 0:00:32]} Qa3 {[%emt 0:00:29]} 11. f5 {[%emt 0:00:09]} Nc6 {[%emt 0:09:22]} 12. fxe6 {[%emt 0:06:18]} Nxd4 {[%emt 0:09:42]} 13. exf7+ {[%emt 0:00:27]} Kxf7 {[%emt 0:00:25]} 14. Qxd4 {[%emt 0:00:05]} g5 {[%emt 0:12:34]} 15. Bc4+ {[%emt 0:03:51]} Kg6 {[%emt 0:03:32]} 16. O-O {[%emt 0:12:48]} Bg7 {[%emt 0:12:29]} 17. Qd3 {[%emt 0:01:14]} Qc5+ {[%emt 0:11:11]} 18. Kh1 {[%emt 0:01:43]} gxh4 {[%emt 0:06:28]} 19. e5+ {[%emt 0:00:43]} Kg5 {[%emt 0:00:38]} 20. Rxf6 {[%emt 0:00:39]} d5 {[%emt 0:00:59]} 21. Qg6# {[%emt 0:00:04]} 1-0

[Event "EYCC Open-U12 2019"]
[Site "Bratislava"]
[Date "2019.08.06"]
[Round "5.35"]
[White "Gudmundsson, Gunnar Erik"]
[Black "Uritsky, Yonathan"]
[Result "0-1"]
[ECO "D85"]
[WhiteElo "1746"]
[BlackElo "2040"]
[Annotator "NA"]
[PlyCount "86"]
[EventDate "2019.08.02"]
[EventType "swiss"]
[EventCountry "SVK"]
[SourceTitle "playchess.com"]
[Source "ChessBase"]
[SourceQuality "1"]
[TimeControl "40/5400+30:1800+30"]

1. d4 {[%emt 0:00:00]} Nf6 {[%emt 0:00:00]} 2. c4 {[%emt 0:00:00]} g6 {[%emt 0:00:05]} 3. Nc3 {[%emt 0:00:06]} d5 {[%emt 0:00:23]} 4. cxd5 {[%emt 0:00:46]} Nxd5 {[%emt 0:00:18]} 5. e4 {[%emt 0:00:13]} Nxc3 {[%emt 0:00:12]} 6. bxc3 {[%emt 0:00:10]} Bg7 {[%emt 0:00:11]} 7. Be3 {[%emt 0:00:48]} c5 {[%emt 0:00:17]} 8. Nf3 {[%emt 0:00:51]} Qa5 {[%emt 0:00:37]} 9. Qd2 {[%emt 0:00:23]} O-O {[%emt 0:01:16]} 10. Rb1 {[%emt 0:01:55]} cxd4 {[%emt 0:00:49]} 11. cxd4 {[%emt 0:00:25]} Qxd2+ {[%emt 0:00:41]} 12. Kxd2 {[%emt 0:00:07]} Rd8 {[%emt 0:04:01]} 13. Bd3 {[%emt 0:05:01]} Nc6 {[%emt 0:03:48]} 14. d5 {[%emt 0:03:36]} Na5 {[%emt 0:00:59]} 15. Ke2 {[%emt 0:04:38]} e6 {[%emt 0:00:44]} 16. Bf4 {[%emt 0:07:38]} exd5 {[%emt 0:03:32]} 17. Bc7 {[%emt 0:18:31]} Re8 {[%emt 0:00:10]} 18. Bxa5 {[%emt 0:00:15]} dxe4 {[%emt 0:00:06]} 19. Bb5 {[%emt 0:01:55]} exf3+ {[%emt 0:00:05]} 20. Kxf3 {[%emt 0:01:29]} Re5 {[%emt 0:01:19]} 21. Bc7 {[%emt 0:08:41]} Rf5+ {[%emt 0:00:50]} 22. Ke2 {[%emt 0:01:27]} Be6 {[%emt 0:03:25]} 23. a4 {[%emt 0:03:55]} Rc8 {[%emt 0:01:21]} 24. Rhc1 {[%emt 0:02:07]} Bh6 {[%emt 0:06:40]} 25. Rc3 {[%emt 0:03:47]} Bf4 {[%emt 0:03:44]} 26. Ba5 {[%emt 0:09:27]} a6 {[%emt 0:01:24]} 27. Rxc8+ {[%emt 0:01:25]} Bxc8 {[%emt 0:00:51]} 28. g4 {[%emt 0:06:18]} Rd5 {[%emt 0:01:51]} 29. Kf3 {[%emt 0:02:51]} Bd6 {[%emt 0:01:30]} 30. Bc4 {[%emt 0:08:07]} Rxa5 {[%emt 0:00:32]} 31. Bb3 {[%emt 0:00:54]} b5 {[%emt 0:01:11]} 32. Rd1 {[%emt 0:01:37]} bxa4 {[%emt 0:01:02]} 33. Ba2 {[%emt 0:01:14]} Bb7+ {[%emt 0:00:40]} 34. Ke2 {[%emt 0:00:13]} Re5+ {[%emt 0:00:19]} 35. Kf1 {[%emt 0:00:50]} Bb4 {[%emt 0:00:09]} 36. Rb1 {[%emt 0:00:47]} Rb5 {[%emt 0:00:20]} 37. Rd1 {[%emt 0:00:41]} Bc6 {[%emt 0:00:57]} 38. Rc1 {[%emt 0:00:28]} Rc5 {[%emt 0:00:25]} 39. Rxc5 {[%emt 0:01:34]} Bxc5 {[%emt 0:00:07]} 40. Ke2 {[%emt 0:00:00]} Bd7 {[%emt 0:00:00]} 41. f3 {[%emt 0:01:31]} Be6 {[%emt 0:00:17]} 42. Bxe6 {[%emt 0:00:29]} fxe6 {[%emt 0:00:05]} 43. Kd2 {[%emt 0:00:04]} a3 {[%emt 0:00:05]} 0-1